bitfinex-derivatives/quotes_SOLF0:USTF0_20251115
["timestamp","ask_amount","ask_price","bid_price","bid_amount"]
[1763215854663,3.13,141.51,141.5,0.05334539]
[1763215856565,0.05414871,141.52,141.5,1.48334539]
[1763215856862,3.18414871,141.52,141.5,0.05334539]
[1763215862271,0.05414871,141.52,141.5,1.48334539]
[1763215862666,3.18414871,141.52,141.5,1.48334539]
[1763215863378,3.18414871,141.52,141.5,0.05334539]
[1763215865574,3.18414871,141.52,141.5,1.48334539]
[1763215865876,3.41414871,141.52,141.5,1.48334539]
[1763215866272,0.05414871,141.52,141.5,1.48334539]
[1763215866871,3.36,141.57,141.5,1.48334539]
[1763215867074,3.36,141.57,141.5,1.43]
[1763215867766,0.05250477,141.55,141.52,1.4798718]
[1763215870578,3.36,141.59,141.54,1.43]
[1763215871269,3.36,141.59,141.52,6.60378135]
[1763215871472,3.36,141.59,141.51,21.0]
[1763215871473,3.36,141.59,141.51,22.7977171]
[1763215871679,3.36,141.59,141.54,0.04627205]
[1763215872179,3.35,141.57,141.54,0.04627205]
[1763215872476,3.35,141.55,141.54,0.04627205]
[1763215875681,3.35,141.57,141.54,1.47627205]
[1763215875882,3.35,141.57,141.54,0.04627205]
[1763215879075,3.35,141.57,141.54,1.47627205]
[1763215890785,3.35,141.57,141.54,0.04627205]
[1763215894388,3.35,141.57,141.54,1.47627205]
[1763215897086,3.19,141.6,141.55,1.43]
[1763215897292,3.19,141.6,141.57,1.43]
[1763215898184,3.19,141.62,141.57,1.43]
[1763215907199,3.19,141.62,141.59,1.43]
[1763215907494,3.19,141.62,141.59,1.47720505]
[1763215910700,3.19,141.62,141.59,0.04720505]
[1763215914601,3.19,141.67,141.59,1.47720505]
[1763215914806,3.19,141.67,141.62,0.05202686]
[1763215916107,3.19,141.65,141.62,0.05202686]
[1763215916511,3.19,141.63,141.55,6.58655908]
[1763215916712,3.19,141.63,141.55,8.06655908]
[1763215917506,3.19,141.59,141.58,0.04815558]
[1763215918808,3.19,141.59,141.55,8.06845224]
[1763215919020,3.19,141.59,141.53,6.58845224]
[1763215919222,3.19,141.59,141.53,8.06845224]
[1763215919421,3.19,141.59,141.54,8.06845224]
[1763215919817,0.045308,141.58,141.55,0.04947776]
[1763215920124,3.19,141.57,141.55,0.04947776]
[1763215920423,3.235308,141.58,141.55,1.52947776]
[1763215922014,0.045308,141.58,141.55,1.52947776]
[1763215922423,0.045308,141.58,141.56,1.48]
[1763215923524,3.235308,141.58,141.55,0.04947776]
[1763215925827,3.235308,141.58,141.55,1.52947776]
[1763215926130,3.235308,141.58,141.55,0.04947776]
[1763215926328,3.235308,141.58,141.55,1.52947776]
[1763215926529,3.235308,141.58,141.55,0.04947776]
[1763215927425,3.235308,141.58,141.55,1.52947776]
[1763215927623,3.235308,141.58,141.55,0.04947776]
[1763215929331,3.28,141.57,141.5,2.80731814]
[1763215930227,3.28,141.54,141.52,0.0473556]
[1763215931318,0.05380972,141.55,141.52,1.5773556]
[1763215931629,0.05380972,141.55,141.53,1.53]
[1763215932031,3.29,141.6,141.54,1.53]
[1763215932232,3.29,141.6,141.54,4.33731814]
[1763215932918,0.04511426,141.58,141.56,0.04953546]
[1763215933228,3.33511426,141.58,141.56,0.04953546]
[1763215947839,3.33511426,141.58,141.5,6.58845224]
[1763215947840,3.38,141.57,141.5,6.58845224]
[1763215948040,3.38,141.57,141.49,8.16845224]
[1763215948940,3.38,141.53,141.52,0.04571757]
[1763215957648,0.04582645,141.54,141.52,1.63571757]
[1763215961451,0.04582645,141.54,141.52,8.22416981]
[1763215961847,3.11582645,141.54,141.52,6.63416981]
[1763215962043,3.11582645,141.54,141.52,8.22416981]
[1763215963653,3.11582645,141.54,141.52,1.63571757]
[1763215964454,3.11582645,141.54,141.52,8.22416981]
[1763215965259,3.11582645,141.54,141.52,1.63571757]
[1763215965453,3.11582645,141.54,141.52,8.22416981]
[1763215966758,3.11582645,141.54,141.52,6.63416981]
[1763215967758,9.37200328,141.61,141.52,6.63416981]
[1763215967947,9.37200328,141.61,141.52,6.58845224]
[1763215968955,0.05351583,141.58,141.55,0.04879072]
[1763215969759,3.07,141.57,141.55,0.04879072]
[1763215971662,3.07,141.57,141.55,3.19879072]
[1763215972261,3.07,141.57,141.55,0.04879072]
[1763215984076,3.07,141.57,141.55,3.34879072]
[1763215984380,3.20351583,141.58,141.55,3.34879072]
[1763215984582,0.05351583,141.58,141.55,3.34879072]
[1763215984776,3.15,141.58,141.56,3.3]
[1763215985883,3.19947753,141.58,141.56,3.3]
[1763215987388,0.04947753,141.58,141.56,3.3]
[1763215987682,3.15,141.64,141.58,3.3]
[1763215988180,3.15,141.64,141.59,3.3]
[1763215988673,3.15,141.64,141.6,0.05255034]
[1763215989489,3.15,141.64,141.6,3.35255034]
[1763215990187,3.15,141.64,141.61,3.3]
[1763215990677,3.15,141.68,141.62,1.79798265]
[1763215990881,3.15,141.68,141.64,0.05259912]
[1763215995989,3.33,141.67,141.64,0.05259912]
[1763215997991,3.33,141.65,141.64,0.05259912]
[1763215998186,3.33,141.65,141.58,5.15798265]
[1763215999086,3.33,141.62,141.6,0.04608664]
[1763215999691,3.33,141.62,141.6,3.40608664]
[1763216000489,0.05009472,141.63,141.6,3.40608664]
[1763216000996,0.05009472,141.63,141.6,5.20406929]
[1763216001198,0.05009472,141.63,141.61,3.36]
[1763216002392,3.33,141.67,141.61,3.36]
[1763216002697,3.33,141.67,141.63,3.36]
[1763216003395,3.33,141.67,141.64,0.05352162]
[1763216003595,3.33,141.67,141.64,3.41352162]
[1763216004790,3.33,141.67,141.64,0.05352162]
[1763216006402,3.33,141.66,141.64,0.05352162]
[1763216008102,1.79798265,141.65,141.64,0.05352162]
[1763216008397,5.12798265,141.65,141.64,0.05352162]
[1763216009602,3.33,141.65,141.64,0.05352162]
[1763216010001,5.12798265,141.65,141.64,0.05352162]
[1763216010406,3.33,141.7,141.64,0.05352162]
[1763216010599,3.33,141.66,141.64,0.05352162]
[1763216011895,3.33,141.69,141.64,3.41352162]
[1763216012603,3.33,141.69,141.68,1.79798265]
[1763216017211,3.33,141.71,141.68,1.79798265]
[1763216017414,3.33,141.71,141.7,1.79798265]
[1763216021711,3.33,141.71,141.68,0.04628201]
[1763216022014,3.33,141.71,141.7,1.79798265]
[1763216023213,3.33,141.74,141.7,5.00798265]
[1763216023420,3.33,141.74,141.73,1.79798265]
[1763216026016,3.33,141.74,141.71,1.84320157]
[1763216026321,3.33,141.73,141.71,0.04521892]
[1763216029316,3.33,141.73,141.71,1.84320157]
[1763216032925,3.33,141.73,141.71,0.04521892]
[1763216037738,3.33,141.77,141.71,3.25521892]
[1763216038036,3.33,141.77,141.71,6.05776393]
[1763216038932,3.33,141.77,141.71,2.84776393]
[1763216039436,3.33,141.77,141.71,0.04521892]
[1763216047344,9.89468514,141.77,141.71,0.04521892]
[1763216047849,5.92254501,141.76,141.71,0.04521892]
[1763216048150,7.98468514,141.77,141.71,0.04521892]
[1763216048151,3.12,141.73,141.71,0.04521892]
[1763216048340,3.12,141.73,141.65,3.1]
[1763216048947,3.12,141.72,141.65,3.1]
[1763216049351,3.12,141.69,141.67,0.04823677]
[1763216051450,3.12,141.69,141.62,3.1]
[1763216051748,3.08,141.68,141.62,3.1]
[1763216051948,3.08,141.68,141.6,3.09]
[1763216052545,3.08,141.64,141.63,0.04757143]
[1763216056052,3.08,141.64,141.59,2.80254501]
[1763216056053,3.08,141.64,141.59,3.09]
[1763216056456,3.08,141.64,141.57,5.89254501]
[1763216056657,3.08,141.64,141.55,3.09]
[1763216056855,3.08,141.62,141.55,3.09]
[1763216057050,3.08,141.62,141.57,0.05266751]
[1763216057255,3.08,141.59,141.57,0.05266751]
[1763216059958,3.12579464,141.6,141.57,3.14266751]
[1763216060155,0.04579464,141.6,141.57,3.14266751]
[1763216061265,0.04579464,141.6,141.59,3.09]
[1763216069676,3.08,141.65,141.59,3.09]
[1763216069870,3.08,141.65,141.6,3.09]
[1763216070671,0.05176611,141.64,141.6,3.09]
[1763216070970,3.13176611,141.64,141.61,0.04921965]
[1763216075976,3.13176611,141.64,141.61,3.23921965]
[1763216076174,3.13176611,141.64,141.61,0.04921965]
[1763216077080,3.13176611,141.64,141.61,3.23921965]
[1763216077572,0.05176611,141.64,141.61,3.23921965]
[1763216084379,3.34,141.69,141.63,3.19]
[1763216085483,0.04764517,141.67,141.66,3.19]
[1763216089773,3.38764517,141.67,141.65,0.0494625]
[1763216090382,3.38764517,141.67,141.65,3.2394625]
[1763216090583,3.38764517,141.67,141.65,0.0494625]
[1763216091477,0.04764517,141.67,141.65,3.2394625]
[1763216091687,3.38764517,141.67,141.65,0.0494625]
[1763216099094,0.04764517,141.67,141.66,3.19]
[1763216099492,0.04764517,141.67,141.65,1.84455727]
[1763216099687,0.04764517,141.67,141.65,5.03455727]
[1763216099995,0.04764517,141.67,141.66,3.19]
[1763216100898,3.34,141.72,141.66,3.19]
[1763216101087,3.34,141.72,141.67,1.79509477]
[1763216101294,3.34,141.72,141.68,3.19]
[1763216101898,3.34,141.72,141.69,0.04712146]
[1763216102293,5.13509477,141.72,141.69,0.04712146]
[1763216102494,3.34,141.71,141.69,0.04712146]
[1763216103199,3.34,141.74,141.69,3.23712146]
[1763216103403,3.34,141.74,141.7,3.19]
[1763216105701,3.34,141.74,141.71,1.79509477]
[1763216105906,3.16,141.75,141.72,3.21]
[1763216106106,3.16,141.75,141.72,3.26367825]
[1763216107006,3.16,141.75,141.72,0.05367825]
[1763216107007,4.95509477,141.75,141.72,0.05367825]
[1763216107315,3.16,141.74,141.72,0.05367825]
[1763216115309,5.19509477,141.73,141.72,0.05367825]
[1763216115511,3.4,141.72,141.68,1.79509477]
[1763216116015,3.4,141.72,141.68,5.18509477]
[1763216116515,3.44830479,141.71,141.69,0.04499481]
[1763216120313,3.4,141.74,141.7,5.18509477]
[1763216120520,3.4,141.74,141.71,3.39]
[1763216120918,3.4,141.76,141.71,3.39]
[1763216121325,3.4,141.76,141.72,3.44195411]
[1763216121619,3.4,141.76,141.73,3.39]
[1763216122623,3.4,141.76,141.72,0.05195411]
[1763216123424,3.4,141.76,141.72,3.44195411]
[1763216130326,3.4,141.76,141.73,5.18509477]
[1763216131526,3.4,141.76,141.73,1.79509477]
[1763216132023,3.4,141.76,141.73,5.18509477]
[1763216135023,3.4,141.76,141.72,0.05195411]
[1763216135328,3.4,141.76,141.72,1.84704888]
[1763216137323,3.4,141.76,141.72,5.19704888]
[1763216138626,3.4,141.76,141.72,1.84704888]
[1763216139028,3.4,141.76,141.72,0.05195411]
[1763216139232,3.29,141.73,141.67,1.79509477]
[1763216140032,3.29,141.73,141.66,1.79509477]
[1763216140234,3.29,141.71,141.65,3.35]
[1763216140433,3.29,141.71,141.68,0.0509415]
[1763216140434,3.33672562,141.71,141.68,0.0509415]
[1763216140631,3.33672562,141.71,141.58,12.96051469]
[1763216140632,3.29,141.69,141.64,1.79509477]
[1763216141028,1.79509477,141.68,141.62,1.79509477]
[1763216141339,3.29,141.67,141.62,1.79509477]
[1763216141637,3.29,141.65,141.63,0.05392523]
[1763216141837,3.33473569,141.65,141.63,0.05074851]
[1763216145631,0.04473569,141.65,141.63,3.40074851]
[1763216145937,0.04473569,141.65,141.64,3.35]
[1763216147640,0.04473569,141.65,141.63,5.19584328]
[1763216147940,0.04473569,141.65,141.64,3.35]
[1763216148439,3.33473569,141.65,141.63,0.05074851]
[1763216156742,3.29,141.64,141.63,0.05074851]
[1763216161150,3.29,141.64,141.57,2.80667702]
[1763216161456,3.29,141.64,141.57,6.15667702]
[1763216162250,3.29,141.61,141.59,0.05417469]
[1763216167456,3.31328117,141.62,141.6,3.18]
[1763216167657,3.31328117,141.62,141.59,0.05417469]
[1763216169560,3.26,141.6,141.54,3.18]
[1763216169860,3.26,141.6,141.52,5.98667702]
[1763216170662,3.26,141.56,141.55,0.05023784]
[1763216172556,3.26,141.56,141.51,3.36]
[1763216172763,3.24,141.55,141.47,3.36]
[1763216173458,3.24,141.51,141.5,0.0514266]
[1763216173758,3.24,141.51,141.49,0.05317315]
[1763216176260,3.24,141.51,141.42,3.36]
[1763216177267,3.29020234,141.48,141.45,3.40474472]
[1763216177460,3.29020234,141.48,141.45,0.04474472]
[1763216179560,3.29020234,141.48,141.45,3.40474472]
[1763216180263,0.05020234,141.48,141.45,3.40474472]
[1763216183666,0.05020234,141.48,141.46,3.36]
[1763216186168,0.05020234,141.48,141.45,3.40474472]
[1763216186169,3.29020234,141.48,141.45,3.40474472]
[1763216186363,3.29020234,141.48,141.45,0.04474472]
[1763216188976,3.29020234,141.48,141.45,3.40474472]
[1763216189476,3.29020234,141.48,141.45,0.04474472]
[1763216190378,3.29020234,141.48,141.36,9.37603256]
[1763216190379,3.29020234,141.48,141.4,3.36]
[1763216190676,3.24,141.47,141.4,3.36]
[1763216191177,2.80667702,141.48,141.36,3.36]
[1763216191178,3.24,141.41,141.36,3.36]
[1763216191470,3.24,141.39,141.37,0.05159878]
[1763216191874,3.24,141.39,141.33,3.36]
[1763216192268,3.24,141.37,141.29,3.36]
[1763216192674,3.24,141.35,141.29,3.36]
[1763216192869,3.29052938,141.33,141.31,0.04697026]
[1763216193469,0.05052938,141.33,141.31,3.40697026]
[1763216199477,3.35,141.41,141.32,3.18]
[1763216199674,3.35,141.41,141.33,3.18]
[1763216199879,3.35,141.41,141.35,3.18]
[1763216200279,3.35,141.45,141.35,3.18]
[1763216200480,0.04708089,141.41,141.4,3.18]
[1763216200676,3.35,141.45,141.4,3.18]
[1763216200677,0.04987084,141.42,141.4,3.18]
[1763216201080,0.04987084,141.42,141.3,2.80667702]
[1763216201081,3.39987084,141.42,141.33,3.18]
[1763216201269,3.35,141.42,141.33,3.18]
[1763216201780,3.35,141.42,141.35,3.18]
[1763216202280,3.35,141.42,141.34,2.80667702]
[1763216202281,0.05431417,141.4,141.37,3.23286194]
[1763216207579,3.40431417,141.4,141.37,3.23286194]
[1763216207983,3.40431417,141.4,141.37,0.05286194]
[1763216208780,0.05431417,141.4,141.37,3.23286194]
[1763216209486,3.40431417,141.4,141.37,0.05286194]
[1763216213086,0.05431417,141.4,141.37,3.23286194]
[1763216215089,3.40431417,141.4,141.37,3.23286194]
[1763216215585,3.40431417,141.4,141.37,0.05286194]
[1763216216589,0.05431417,141.4,141.37,3.23286194]
[1763216219092,3.35,141.46,141.38,3.18]
[1763216219990,0.05403314,141.43,141.42,3.18]
[1763216220192,0.05403314,141.43,141.41,3.23348219]
[1763216220385,3.40403314,141.43,141.41,0.05348219]
[1763216220592,0.05403314,141.43,141.41,3.23348219]
[1763216224199,0.05403314,141.43,141.41,0.05348219]
[1763216224399,0.05403314,141.43,141.41,3.40348219]
[1763216226796,3.22,141.48,141.41,3.40348219]
[1763216227799,0.04906124,141.46,141.41,3.40348219]
[1763216227999,0.04906124,141.46,141.43,3.35]
[1763216228999,0.04906124,141.46,141.45,3.35]
[1763216229900,5.01942969,141.51,141.45,3.35]
[1763216230902,0.04671385,141.49,141.47,0.04723151]
[1763216231101,3.26671385,141.49,141.47,0.04723151]
[1763216233501,0.04671385,141.49,141.47,3.12723151]
[1763216234904,3.16671385,141.49,141.47,0.04723151]
[1763216235106,0.04671385,141.49,141.47,3.12723151]
[1763216235902,3.16671385,141.49,141.47,0.04723151]
[1763216239507,3.12,141.48,141.47,0.04723151]
[1763216240201,3.12,141.48,141.41,25.87942969]
[1763216240407,3.12,141.48,141.41,4.87942969]
[1763216240601,3.12,141.48,141.42,3.08]
[1763216241105,0.05248914,141.46,141.44,0.04738561]
[1763216242006,3.17248914,141.46,141.44,0.04738561]
[1763216242705,3.12,141.44,141.36,24.08]
[1763216242908,3.12,141.42,141.36,3.08]
[1763216243608,0.05173344,141.4,141.38,0.05044717]
[1763216244108,0.05173344,141.4,141.38,3.13044717]
[1763216245296,0.05173344,141.4,141.39,3.08]
[1763216245707,4.91942969,141.45,141.39,3.08]
[1763216245907,3.12,141.45,141.39,3.08]
[1763216246707,0.04495867,141.43,141.39,3.08]
[1763216247510,3.12,141.42,141.38,3.13044717]
[1763216248009,0.04495867,141.43,141.38,4.92987686]
[1763216248209,0.04495867,141.43,141.39,3.08]
[1763216249207,3.16495867,141.43,141.39,3.08]
[1763216249600,3.16495867,141.43,141.38,3.13044717]
[1763216250209,0.04495867,141.43,141.38,3.13044717]
[1763216250997,0.04495867,141.43,141.39,3.08]
[1763216252212,3.16495867,141.43,141.39,3.08]
[1763216252905,3.16495867,141.43,141.38,0.05044717]
[1763216253414,3.12,141.41,141.38,0.05044717]
[1763216254301,1.79942969,141.39,141.32,6.51532985]
[1763216254513,3.39,141.36,141.28,11.57475954]
[1763216254708,3.39,141.36,141.3,1.79942969]
[1763216255010,3.39,141.39,141.33,3.26]
[1763216255414,0.0519766,141.37,141.35,3.31166354]
[1763216255606,0.0519766,141.37,141.35,3.31211056]
[1763216256911,0.0519766,141.37,141.35,0.05211056]
[1763216257911,0.0519766,141.37,141.35,3.31211056]
[1763216258115,0.0519766,141.37,141.35,5.11154025]
[1763216258308,0.0519766,141.37,141.36,3.26]
[1763216258710,0.0519766,141.37,141.35,3.31211056]
[1763216261313,3.4419766,141.37,141.35,0.05211056]
[1763216261514,3.4419766,141.37,141.35,3.31211056]
[1763216261515,0.0519766,141.37,141.35,3.31211056]
[1763216262320,0.0519766,141.37,141.36,3.26]
[1763216263116,0.0519766,141.37,141.35,3.31211056]
[1763216265416,3.4419766,141.37,141.35,0.05211056]
[1763216267215,0.0519766,141.37,141.35,3.31211056]
[1763216268520,3.4419766,141.37,141.35,0.05211056]
[1763216270124,0.0519766,141.37,141.35,3.31211056]
[1763216280133,3.4419766,141.37,141.35,0.05211056]
[1763216283429,3.4419766,141.37,141.29,9.77532985]
[1763216284138,3.4419766,141.37,141.29,3.26]
[1763216284431,3.4419766,141.37,141.32,0.04659811]
[1763216287837,3.4419766,141.37,141.32,3.25659811]
[1763216288238,3.4419766,141.37,141.32,0.04659811]
[1763216290134,6.2582166,141.37,141.32,0.04659811]
[1763216290335,3.29,141.36,141.32,0.04659811]
[1763216291830,3.29,141.36,141.32,3.41659811]
[1763216295241,3.29,141.36,141.32,0.04659811]
[1763216299336,3.18,141.34,141.32,0.04659811]
[1763216307051,3.18,141.36,141.32,3.41659811]
[1763216308050,3.18,141.36,141.32,0.04659811]
[1763216312353,3.18,141.36,141.32,3.41659811]
[1763216313956,3.18,141.36,141.32,0.04659811]
[1763216314353,3.18,141.36,141.32,3.41659811]
[1763216314556,3.18,141.36,141.32,0.04659811]
[1763216315650,3.18,141.36,141.32,3.41659811]
[1763216318059,0.0519766,141.37,141.32,3.41659811]
[1763216318862,3.1419766,141.37,141.32,3.41659811]
[1763216319262,0.0519766,141.37,141.32,9.93192796]
[1763216319462,0.0519766,141.37,141.33,3.37]
[1763216320363,3.1419766,141.37,141.33,3.37]
[1763216325468,3.1419766,141.37,141.32,0.04659811]
[1763216327368,2.81624,141.35,141.32,0.04659811]
[1763216327569,3.09,141.34,141.32,0.04659811]
[1763216330674,3.09,141.34,141.27,3.37]
[1763216331574,3.09,141.32,141.24,3.37]
[1763216331774,3.13976763,141.29,141.27,0.05146562]
[1763216334069,3.13976763,141.29,141.21,3.37]
[1763216335176,3.13976763,141.29,141.24,0.05420532]
[1763216338879,3.09,141.25,141.24,0.05420532]
[1763216341387,0.04596779,141.26,141.24,3.42420532]
[1763216341585,3.13596779,141.26,141.24,0.05420532]
[1763216342279,0.04596779,141.26,141.24,3.42420532]
[1763216344979,0.04596779,141.26,141.25,3.2]
[1763216345481,0.04596779,141.26,141.24,3.25420532]
[1763216348194,3.13,141.32,141.25,3.2]
[1763216348389,3.13,141.32,141.27,3.2]
[1763216349292,3.13,141.32,141.28,3.25003942]
[1763216349293,0.04635198,141.31,141.28,3.25003942]
[1763216349889,0.04635198,141.31,141.29,3.2]
[1763216350087,3.17635198,141.31,141.29,3.2]
[1763216350285,3.17635198,141.31,141.28,3.25003942]
[1763216350685,0.04635198,141.31,141.28,3.25003942]
[1763216350986,0.04635198,141.31,141.28,5.0562074]
[1763216351298,0.04635198,141.31,141.29,3.2]
[1763216352794,3.17635198,141.31,141.28,3.25003942]
[1763216352994,0.04635198,141.31,141.28,3.25003942]
[1763216353200,0.04635198,141.31,141.3,3.2]
[1763216353998,3.17635198,141.31,141.28,3.25003942]
[1763216355405,3.17635198,141.31,141.28,0.05003942]
[1763216356600,3.13,141.3,141.23,5.00616798]
[1763216356800,1.80616798,141.29,141.23,3.2]
[1763216357006,3.13,141.28,141.23,3.2]
[1763216357909,3.13,141.26,141.24,0.04781299]
[1763216358701,3.1804326,141.27,141.24,3.24781299]
[1763216362511,0.0504326,141.27,141.24,3.24781299]
[1763216363914,3.3104326,141.27,141.24,3.24781299]
[1763216364911,0.0504326,141.27,141.24,3.24781299]
[1763216365609,3.3104326,141.27,141.24,0.04781299]
[1763216365911,3.3104326,141.27,141.24,3.39781299]
[1763216366710,0.0504326,141.27,141.24,3.39781299]
[1763216369313,0.0504326,141.27,141.26,3.35]
[1763216370314,3.26,141.33,141.27,3.35]
[1763216371115,0.04640036,141.31,141.29,3.40146248]
[1763216371416,3.30640036,141.31,141.29,3.40146248]
[1763216371810,3.30640036,141.31,141.29,0.05146248]
[1763216372906,3.30640036,141.31,141.29,3.40146248]
[1763216374316,3.30640036,141.31,141.29,0.05146248]
[1763216391534,3.30640036,141.31,141.23,4.97616798]
[1763216392232,3.30640036,141.31,141.24,3.17]
[1763216392533,3.30640036,141.31,141.26,0.05160376]
[1763216392735,3.30640036,141.31,141.26,3.22160376]
[1763216394134,3.30640036,141.31,141.26,0.05160376]
[1763216394637,3.36,141.29,141.26,0.05160376]
[1763216400840,3.36,141.27,141.21,3.17]
[1763216402044,0.04727445,141.25,141.23,3.2182161]
[1763216402341,3.36,141.31,141.23,3.17]
[1763216403144,3.41171395,141.28,141.26,0.04916671]
[1763216403344,3.41079618,141.28,141.26,0.04916671]
[1763216404840,0.05079618,141.28,141.26,3.17916671]
[1763216405043,3.36079618,141.28,141.26,0.04916671]
[1763216412453,3.36079618,141.28,141.22,3.13]
[1763216413658,3.36079618,141.28,141.24,0.04727921]
[1763216418662,3.14,141.26,141.18,3.27]
[1763216418861,3.14,141.25,141.18,3.27]
[1763216419062,3.14,141.23,141.18,3.27]
[1763216419358,3.14,141.23,141.13,11.46205768]
[1763216419556,3.14,141.21,141.14,3.27]
[1763216419758,3.19038378,141.19,141.16,0.0503176]
[1763216419959,3.19038378,141.19,141.16,0.05374223]
[1763216419960,3.18571089,141.19,141.16,0.05374223]
[1763216420366,6.00742544,141.19,141.16,0.05374223]
[1763216420669,3.14,141.18,141.16,0.05374223]
[1763216421060,3.14,141.18,141.12,3.27]
[1763216422064,3.14,141.18,141.14,0.04517808]
[1763216422867,3.14,141.16,141.08,3.27]
[1763216423761,3.18607853,141.13,141.08,3.27]
[1763216426373,3.14,141.12,141.05,3.27]
[1763216426676,3.14,141.09,141.05,3.27]
[1763216432373,3.14,141.09,141.02,3.27]
[1763216432569,3.19031534,141.07,141.02,3.27]
[1763216432875,0.05031534,141.07,141.02,3.27]
[1763216433270,3.19031534,141.07,141.02,3.27]
[1763216433975,3.19031534,141.07,141.0,3.19]
[1763216434273,2.82171455,141.11,141.0,3.19]
[1763216434274,3.1382463,141.05,141.0,3.19]
[1763216435170,0.0482463,141.05,141.0,3.19]
[1763216436971,0.0482463,141.05,141.02,3.19]
[1763216438369,0.0482463,141.05,141.02,4.61]
[1763216438575,0.0482463,141.05,141.03,3.19]
[1763216438979,0.0482463,141.05,141.04,3.19]
[1763216439383,0.0482463,141.05,141.04,4.61]
[1763216439673,3.09,141.1,141.05,3.19]
[1763216439878,2.82171455,141.13,141.05,3.19]
[1763216440081,3.09,141.13,141.05,3.19]
[1763216440476,0.0540039,141.1,141.08,3.23591039]
[1763216442380,3.1440039,141.1,141.08,3.23591039]
[1763216443182,0.0540039,141.1,141.08,3.23591039]
[1763216444887,3.1440039,141.1,141.08,3.23591039]
[1763216445083,3.1440039,141.1,141.08,0.04591039]
[1763216445882,3.1440039,141.1,141.08,3.23591039]
[1763216446385,0.0540039,141.1,141.08,3.23591039]
[1763216449481,3.09,141.16,141.09,3.19]
[1763216449685,3.09,141.16,141.1,3.19]
[1763216450586,0.05068035,141.14,141.13,3.19]
[1763216452887,3.09,141.19,141.13,3.19]
[1763216453083,3.09,141.22,141.13,3.19]
[1763216453786,0.04662064,141.19,141.17,3.19]
[1763216454384,3.13662064,141.19,141.16,3.24333185]
[1763216454688,3.13662064,141.19,141.16,0.05333185]
[1763216456787,3.13662064,141.19,141.16,3.24333185]
[1763216457087,3.13662064,141.19,141.16,0.05333185]
[1763216460696,3.13662064,141.19,141.16,3.24333185]
[1763216460991,0.04662064,141.19,141.16,3.24333185]
[1763216461188,3.13662064,141.19,141.16,3.24333185]
[1763216462186,0.04662064,141.19,141.16,3.24333185]
[1763216462886,0.04662064,141.19,141.16,5.04997484]
[1763216463088,0.04662064,141.19,141.17,3.19]
[1763216463689,3.13662064,141.19,141.17,3.19]
[1763216463894,3.13662064,141.19,141.16,3.24333185]
[1763216464196,0.04662064,141.19,141.16,3.24333185]
[1763216466609,3.31,141.24,141.18,1.80664299]
[1763216466813,3.31,141.24,141.19,3.33]
[1763216467713,0.05061297,141.23,141.21,3.33]
[1763216468711,3.31,141.3,141.22,1.80664299]
[1763216468908,5.11664299,141.3,141.23,3.33]
[1763216469710,1.80664299,141.32,141.25,3.375662]
[1763216469908,0.04525047,141.3,141.27,3.37605788]
[1763216475417,5.05189346,141.3,141.27,0.04605788]
[1763216475623,3.2,141.29,141.27,0.04605788]
[1763216476322,3.2,141.27,141.21,3.28]
[1763216476524,3.2,141.25,141.21,3.28]
[1763216477024,5.00664299,141.24,141.21,3.28]
[1763216477523,5.05744792,141.24,141.21,3.33262642]
[1763216477724,1.85744792,141.24,141.21,3.33262642]
[1763216478222,3.25080493,141.24,141.21,3.33262642]
[1763216478418,5.05744792,141.24,141.21,3.33262642]
[1763216479326,0.05080493,141.24,141.21,3.33262642]
[1763216479528,3.25080493,141.24,141.21,3.33262642]
[1763216479722,0.05080493,141.24,141.21,3.33262642]
[1763216485029,1.80664299,141.29,141.22,3.28]
[1763216485340,5.00664299,141.31,141.23,3.28]
[1763216486132,0.05429962,141.28,141.27,3.28]